[Event "Torneio Nacional Honour 2017-18"]
[Site "Cascais"]
[Date "2018.08.16"]
[Round "8"]
[White "Guia, Artur Solovyov Eloy"]
[Black "Goncalves, Carlos Manuel M"]
[Result "1-0"]
[ECO "B07"]
[WhiteElo "1818"]
[BlackElo "1645"]
[Annotator "NA RC"]
[PlyCount "74"]
[EventDate "2018.08.11"]
[EventType "tourn"]
[EventCountry "POR"]
[SourceTitle "playchess.com"]
[Source "ChessBase"]
[SourceQuality "1"]
[TimeControl "5400+30"]

{[%evp 8,73,23,32767,32767,9,19,32767,32767,29,14,22,55,38,37,32767,32767,95,90,70,121,104,238,88,91,86,237,261,226,184,527,575,572,619,569,627,627,671,635,656,789,769,736,724,685,745,710,768,837,900,722,988,849,5774,2294,29968,29976,2277,29978,29981,29983,5727,29978,29986,29986,29989,29992,29993]} 1. e4 {[%emt 0:00:00]} d6 {[%emt 0:10:08]} 2. d4 {[%emt 0:00:05]} Nf6 {[%emt 0:00:13]} 3. Nc3 {[%emt 0:00:08]} g6 {[%emt 0:00:17]} 4. g3 {[%emt 0:01:14]} Bg7 {[%emt 0:00:18]} 5. Bg2 {[%emt 0:01:17]} O-O {[%emt 0:00:17]} 6. Nge2 {[%emt 0:01:21]} c6 {[%emt 0:00:30]} 7. a4 {[%emt 0:01:42]} e5 {[%emt 0:03:46]} 8. h3 {[%emt 0:01:22]} Na6 {[%emt 0:02:02]} 9. Be3 {[%emt 0:00:29] LiveBook: 19 Games B07: Pirc Defence: Miscellaneous Systems} h5 $146 {[%emt 0:03:24]} ({Predecessor:} 9... Re8 10. O-O Nb4 11. a5 exd4 12. Bxd4 Bd7 13. g4 c5 14. Be3 Bc6 15. Ng3 Nd7 16. f4 d5 {0-1 (99) Kazhgaleyev,M (2589)-Bologan,V (2732) Astana 2012}) 10. O-O {[%emt 0:02:12]} Nc7 {[%emt 0:01:22]} 11. Qd2 {[%emt 0:00:59]} Kh7 {[%emt 0:00:49]} 12. Rad1 {[%emt 0:01:15]} Be6 {[%emt 0:02:03]} 13. f4 {[%emt 0:03:04]} exd4 {[%emt 0:02:12]} 14. Bxd4 {[%emt 0:01:37]} c5 {[%emt 0:02:21]} (14... Bc4 $16) 15. Bxf6 {[%emt 0:02:00]} (15. Be3 $18 {is more deadly.}) 15... Bxf6 {[%emt 0:00:24]} 16. Kh2 {[%emt 0:02:15]} Be7 $2 {[%emt 0:03:40] [#]} (16... Bc4 $16 {is a better defense.}) 17. f5 $1 {[%emt 0:01:31]} Bg5 {[%emt 0:01:56]} 18. fxg6+ {[%emt 0:01:32]} ({Don't play} 18. Qxd6 $6 Qxd6 19. Rxd6 gxf5 $18) 18... fxg6 $2 {[%emt 0:00:15]} (18... Kh6 $16 19. Nf4 (19. Qxd6 Qxd6 20. Rxd6 Be7 $16) 19... fxg6 20. Qxd6 Qxd6 21. Rxd6 Bxf4 22. gxf4 (22. Rxf4 Rad8 $16) 22... Rad8) 19. Rxf8 {[%emt 0:02:02]} Bxd2 {[%emt 0:03:47]} 20. Rxd8 {[%emt 0:00:37]} Rxd8 {[%emt 0:00:12]} 21. Rxd2 {[%emt 0:00:06]} b6 {[%emt 0:00:26]} 22. Nf4 {[%emt 0:00:13]} Bf7 {[%emt 0:01:03] [#]} 23. e5 $1 {[%emt 0:00:24]} Ne6 {[%emt 0:01:51]} 24. Nxe6 {[%emt 0:00:52]} Bxe6 {[%emt 0:00:16]} 25. Rxd6 {[%emt 0:00:21]} Re8 {[%emt 0:00:43]} 26. Nd5 {[%emt 0:00:23]} Bxd5 {[%emt 0:02:32]} 27. Rxd5 {[%emt 0:00:07]} Re7 {[%emt 0:00:18]} 28. h4 {[%emt 0:00:26]} Kg7 {[%emt 0:00:23]} 29. Bh3 {[%emt 0:00:19]} Kf7 {[%emt 0:00:49]} 30. Rd7 {[%emt 0:00:32]} a6 {[%emt 0:01:12]} 31. Rxe7+ {[%emt 0:00:12]} Kxe7 {[%emt 0:00:09]} 32. Kg2 {[%emt 0:00:09]} Kd8 {[%emt 0:00:30]} 33. Kf3 {[%emt 0:00:00]} Kc7 {[%emt 0:00:02]} 34. Kf4 {[%emt 0:00:00]} Kc6 {[%emt 0:00:34]} 35. Kg5 {[%emt 0:00:00]} Kd5 {[%emt 0:00:15]} 36. e6 {[%emt 0:00:00]} Kd6 {[%emt 0:00:33]} 37. Kf6 {[%emt 0:00:00]} Kd5 1-0

[Event "Torneio Nacional Honour 2017-18"]
[Site "Cascais"]
[Date "2018.08.16"]
[Round "8"]
[White "De Moura, Fernando Alves"]
[Black "Lavrador, Rodolfo M Mascarenh"]
[Result "0-1"]
[ECO "C18"]
[WhiteElo "1814"]
[BlackElo "1859"]
[Annotator "NA RC"]
[PlyCount "106"]
[EventDate "2018.08.11"]
[EventType "tourn"]
[EventCountry "POR"]
[SourceTitle "playchess.com"]
[Source "ChessBase"]
[SourceQuality "1"]
[TimeControl "5400+30"]

{[%evp 14,101,-7,-19,32767,-11,6,-20,32767,-17,5,0,-5,-92,-81,-134,-102,-137,-7,-164,0,-312,-312,-441,-421,-539,-445,-470,-451,-487,-438,-455,-421,-456,-354,-406,-412,-476,-520,-615,-650,-658,-537,-621,-543,-534,-516,-514,-547,-548,-541,32767,32767,32767,32767,32767,32767,-772,-704,-923,-644,-766,-627,-817,-826,-762,-767,-1028,32767,32767,-672,32767,32767,-390,32767,-422,-435,32767,-460,32767,32767,-493,-524,-667,-748,-769,-816,-1216,-1814,-2423]} 1. e4 {[%emt 0:04:48]} e6 {[%emt 0:00:00]} 2. d4 {[%emt 0:00:15]} d5 {[%emt 0:00:00]} 3. Nc3 {[%emt 0:00:11]} Bb4 {[%emt 0:00:30]} 4. e5 {[%emt 0:00:35]} c5 {[%emt 0:00:21]} 5. a3 {[%emt 0:00:12]} Bxc3+ {[%emt 0:00:08]} 6. bxc3 {[%emt 0:00:02]} Ne7 {[%emt 0:01:35]} 7. h4 {[%emt 0:05:52]} Nbc6 {[%emt 0:00:53]} 8. Nf3 {[%emt 0:01:05]} Bd7 {[%emt 0:01:51]} 9. a4 {[%emt 0:08:14] LiveBook: 3 Games} Qa5 {[%emt 0:05:05]} 10. Bd2 {[%emt 0:01:49]} Qc7 {[%emt 0:00:18] C19: Französische Verteidigung (Nimzowitsch-Variante)} (10... O-O-O 11. h5 h6 12. Bb5 c4 13. O-O Rdg8 14. Nh2 f5 15. exf6 gxf6 16. Ng4 Rf8 17. Re1 Rf7 18. Qf3 {1-0 (39) Escobar Forero,A (2482)-Principe,A (2264) Lima 2018}) 11. Be2 $146 {[%emt 0:03:02]} ({Vorgänger:} 11. h5 h6 12. Bd3 O-O-O 13. Qc1 c4 14. Be2 Rh7 15. Qa3 Rg8 16. a5 {1-0 (84) Bhawoodien,S (2130)-Solomon,M (2170) Cape Town 2015}) 11... O-O {[%emt 0:01:33]} 12. Bd3 {[%emt 0:05:53]} h6 {[%emt 0:01:03]} 13. Rh3 {[%emt 0:13:13] [#]} (13. Qc1 $11 {hält das Gleichgewicht.}) 13... c4 $1 {[%emt 0:05:45]} 14. Be2 {[%emt 0:00:54] [#]} f6 $1 {[%emt 0:00:20]} 15. Qc1 $1 $11 {[%emt 0:07:33] and White is okay.} Kh7 {[%emt 0:02:34]} (15... fxe5 $17 16. Bxh6 Rf7) 16. Ng5+ {[%emt 0:06:25]} (16. Bf4 $11) 16... Kg8 $2 {[%emt 0:06:09]} ({Stronger than} 16... hxg5 17. hxg5+ Kg8 18. gxf6 $16) ({Black should play} 16... fxg5 $17 17. hxg5 {[#]} h5 $1 {[%mdl 512]} 18. Bxh5 Kg8) 17. f4 $2 {[%emt 0:08:07]} hxg5 {[%emt 0:13:09]} 18. g3 {[%emt 0:12:04]} (18. hxg5 {was worth a try.} fxg5 19. fxg5) 18... gxh4 {[%emt 0:06:12]} 19. Qa3 {[%emt 0:01:56]} hxg3 {[%emt 0:09:02]} 20. Rxg3 {[%emt 0:05:21]} Nf5 21. Rg2 Be8 {[%emt 0:08:20]} 22. O-O-O {[%emt 0:01:48]} Qe7 {[%emt 0:00:25]} 23. Qb2 {[%emt 0:01:00]} Nd8 {[%emt 0:06:01]} 24. Rdg1 {[%emt 0:01:19]} Nf7 {[%emt 0:01:10]} 25. Bh5 {[%emt 0:02:17]} N7h6 {[%emt 0:01:16]} 26. Rh2 {[%emt 0:01:16]} Bxh5 {[%emt 0:01:49]} 27. Rxh5 {[%emt 0:00:02]} b6 {[%emt 0:01:50]} 28. Kd1 {[%emt 0:00:30]} Qf7 {[%emt 0:01:20]} 29. Rh3 {[%emt 0:00:17]} Kh7 {[%emt 0:04:04]} 30. Qc1 {[%emt 0:00:48]} Rh8 {[%emt 0:01:34]} 31. Ke2 {[%emt 0:00:41]} Kg8 {[%emt 0:03:32]} 32. Qf1 {[%emt 0:00:20]} Kf8 {[%emt 0:00:39]} 33. Bc1 {[%emt 0:00:12]} Ke8 {[%emt 0:00:40]} 34. Ba3 {[%emt 0:00:36]} Kd7 {[%emt 0:00:26]} 35. Qb1 {[%emt 0:01:25]} Kc7 {[%emt 0:02:07]} 36. Rh2 {[%emt 0:01:54]} Qd7 {[%emt 0:01:28]} 37. Rhg2 {[%emt 0:01:31]} Rag8 {[%emt 0:02:17]} 38. Rg6 {[%emt 0:03:12]} fxe5 {[%emt 0:00:34]} 39. fxe5 {[%emt 0:00:23]} Nf7 {[%emt 0:00:20]} 40. R1g2 {[%emt 0:01:13]} Nxe5 {[%emt 0:02:47]} 41. dxe5 {[%emt 0:00:23]} Nh4 {[%emt 0:00:24]} 42. Bd6+ {[%emt 0:01:04]} Kb7 {[%emt 0:00:12]} 43. Qb5 {[%emt 0:00:22]} Qxb5 {[%emt 0:00:43]} 44. Rxg7+ {[%emt 0:00:15]} Rxg7 {[%emt 0:01:07]} 45. Rxg7+ {[%emt 0:00:09] [#]} Ka6 $1 {[%emt 0:00:13]} 46. axb5+ {[%emt 0:00:16]} Kxb5 {[%emt 0:00:05]} 47. Rxa7 {[%emt 0:00:30]} Nf5 {[%emt 0:01:21]} 48. Bb4 {[%emt 0:00:40]} Rh2+ {[%emt 0:00:43]} 49. Kf3 {[%emt 0:00:47]} d4 {[%emt 0:00:27]} 50. Ke4 {[%emt 0:01:26]} Rxc2 $19 {[%emt 0:00:43]} 51. Rc7 {[%emt 0:00:31]} dxc3 {[%emt 0:02:45]} 52. Bd6 {[%emt 0:00:49]} Rd2 {[%emt 0:00:47]} 53. Ba3 {[%emt 0:00:26]} c2 {[%emt 0:00:58]} 0-1

[Event "Torneio Nacional Honour 2017-18"]
[Site "Cascais"]
[Date "2018.08.16"]
[Round "8"]
[White "Sa, Claudio Simao Carva"]
[Black "Santos, Isabel"]
[Result "1-0"]
[ECO "B13"]
[WhiteElo "1790"]
[BlackElo "2005"]
[Annotator "NA RC"]
[PlyCount "35"]
[EventDate "2018.08.11"]
[EventType "tourn"]
[EventCountry "POR"]
[SourceTitle "playchess.com"]
[Source "ChessBase"]
[SourceQuality "1"]
[TimeControl "5400+30"]

{[%evp 12,34,11,-6,-2,-55,-77,-72,-58,-72,-75,-91,-106,-65,-104,-130,-158,-143,-158,-158,-170,-183,-150,-232,339]} 1. e4 {[%emt 0:03:15]} c6 {[%emt 0:01:34]} 2. d4 {[%emt 0:00:07]} d5 {[%emt 0:00:41]} 3. exd5 {[%emt 0:00:08]} cxd5 {[%emt 0:00:13]} 4. c4 {[%emt 0:00:07]} Nf6 {[%emt 0:00:06]} 5. Nc3 {[%emt 0:00:05]} Nc6 {[%emt 0:00:37]} 6. Bg5 {[%emt 0:00:56]} Be6 {[%emt 0:08:30]} 7. Nf3 {[%emt 0:03:56]} h6 {[%emt 0:01:22] LiveBook: 9 Games B13: Caro-Kann: Exchange Variation and Panov-Botvinnik Attack} (7... g6 8. Bxf6 exf6 9. c5 Bg7 10. Bb5 O-O 11. O-O Bg4 12. Bxc6 bxc6 13. h3 Bxf3 14. Qxf3 Rb8 15. b3 f5 16. Rfd1 Qh4 17. Ne2 {½-½ (47) Romanov,E (2626)-Volkov,S (2645) St Petersburg 2017}) 8. Bh4 {[%emt 0:00:52]} ({White should try} 8. Bxf6 $11 exf6 9. c5) 8... g5 {[%emt 0:06:17]} ({Wrong is} 8... dxc4 $2 9. Bxf6 exf6 10. d5 $18) 9. Bg3 {[%emt 0:09:08]} dxc4 {[%emt 0:00:50]} 10. Qa4 $146 {[%emt 0:00:47]} ({Predecessor:} 10. Be2 Bg7 11. O-O O-O 12. Nb5 Rc8 13. Ne5 a6 14. Nxc6 Rxc6 15. Nc3 {½-½ (56) Rudnicki,M (2047)-Dluzniewski,M (2224) Koszalin 2001}) 10... Qb6 {[%emt 0:07:48]} 11. Nb5 {[%emt 0:13:14]} Rc8 {[%emt 0:08:00]} 12. Bxc4 {[%emt 0:25:30]} a6 {[%emt 0:04:56]} 13. Nc7+ {[%emt 0:18:44]} Rxc7 {[%emt 0:00:16]} 14. Bxc7 {[%emt 0:00:06]} Qxc7 15. Bxe6 {[%emt 0:00:32]} fxe6 {[%emt 0:01:08]} 16. O-O {[%emt 0:00:11]} Bg7 {[%emt 0:02:01]} 17. Ne5 {[%emt 0:00:49]} (17. Qc2 $17 {was worth a try.}) 17... b5 $18 {[%emt 0:09:49]} (17... Nd5 $19 18. Nxc6 Qxc6 19. Qxc6+ bxc6) 18. Qc2 {[%emt 0:00:37]} 1-0

[Event "Torneio Nacional Honour 2017-18"]
[Site "Cascais"]
[Date "2018.08.17"]
[Round "9"]
[White "Santos, Jose Barria"]
[Black "Guia, Artur Solovyov Eloy"]
[Result "1-0"]
[ECO "C50"]
[WhiteElo "2062"]
[BlackElo "1818"]
[Annotator "NA"]
[PlyCount "129"]
[EventDate "2018.08.11"]
[EventType "tourn"]
[EventCountry "POR"]
[SourceTitle "playchess.com"]
[Source "ChessBase"]
[SourceQuality "1"]
[TimeControl "5400+30"]

1. e4 {[%emt 0:00:00]} e5 {[%emt 0:00:01]} 2. Nf3 {[%emt 0:00:00]} Nc6 {[%emt 0:00:16]} 3. Bc4 {[%emt 0:00:07]} Bc5 {[%emt 0:00:13]} 4. O-O {[%emt 0:00:18]} Nf6 {[%emt 0:00:32]} 5. d3 {[%emt 0:00:15]} d6 {[%emt 0:00:52]} 6. Bg5 {[%emt 0:00:14] LiveBook: 7 Games} h6 {[%emt 0:02:27]} 7. Bh4 {[%emt 0:00:12]} g5 {[%emt 0:01:44]} 8. Bg3 {[%emt 0:00:05]} Bg4 {[%emt 0:01:00]} 9. c3 {[%emt 0:04:14]} Qe7 {[%emt 0:05:11]} 10. Nbd2 {[%emt 0:00:24]} Bb6 {[%emt 0:02:10]} 11. a4 {[%emt 0:02:41]} a5 {[%emt 0:03:57]} 12. Ba2 {[%emt 0:18:20]} O-O-O {[%emt 0:04:08]} 13. Re1 $11 {[%emt 0:08:29]} Rdg8 {[%emt 0:02:47]} 14. Nc4 {[%emt 0:10:17]} Ba7 {[%emt 0:01:45]} 15. Ne3 {[%emt 0:00:24]} Bxe3 {[%emt 0:02:22]} 16. Rxe3 {[%emt 0:01:57]} h5 {[%emt 0:00:48]} 17. h4 {[%emt 0:05:40]} Nh7 {[%emt 0:07:04]} 18. Qd2 {[%emt 0:11:19]} Rg7 {[%emt 0:02:08]} 19. hxg5 {[%emt 0:07:32]} Bxf3 {[%emt 0:04:35]} 20. Rxf3 {[%emt 0:00:04]} Nxg5 {[%emt 0:00:09]} 21. Rf5 {[%emt 0:03:50]} h4 {[%emt 0:00:27]} 22. Bh2 {[%emt 0:00:12]} Rhg8 {[%emt 0:00:57]} 23. Kf1 {[%emt 0:05:05]} Ne6 {[%emt 0:01:29]} 24. g3 {[%emt 0:02:16]} hxg3 {[%emt 0:00:59]} 25. Bxg3 {[%emt 0:00:20]} Nf4 {[%emt 0:03:25]} 26. Rxf4 {[%emt 0:06:26]} exf4 {[%emt 0:00:21]} 27. Qxf4 {[%emt 0:00:04]} Qd7 {[%emt 0:05:48]} 28. Ke2 {[%emt 0:00:24]} Ne5 {[%emt 0:00:36]} 29. d4 {[%emt 0:01:35]} Qg4+ {[%emt 0:02:14]} 30. Qxg4+ {[%emt 0:00:08]} Nxg4 {[%emt 0:00:06]} 31. Rh1 {[%emt 0:00:36]} Nf6 {[%emt 0:01:27]} 32. Kf3 {[%emt 0:00:44]} Nd7 {[%emt 0:10:14]} 33. Rh5 {[%emt 0:00:42]} b6 {[%emt 0:05:30]} 34. Rf5 {[%emt 0:00:07]} Rh8 {[%emt 0:02:01]} 35. e5 {[%emt 0:02:01]} dxe5 {[%emt 0:01:05]} 36. dxe5 {[%emt 0:00:04]} Rhh7 {[%emt 0:01:37]} 37. b4 {[%emt 0:01:19]} axb4 {[%emt 0:06:33]} 38. cxb4 {[%emt 0:00:05]} Nf8 {[%emt 0:01:02]} 39. Rf6 {[%emt 0:03:29]} Nd7 {[%emt 0:00:49]} 40. Rf5 {[%emt 0:01:22]} Nf8 {[%emt 0:00:17]} 41. Rf6 {[%emt 0:00:38]} Nd7 {[%emt 0:02:25]} 42. Rc6 {[%emt 0:00:06]} Nb8 {[%emt 0:00:35]} 43. Rc4 {[%emt 0:00:50]} Rh1 {[%emt 0:01:14]} 44. a5 {[%emt 0:02:53]} Kb7 {[%emt 0:03:59]} 45. axb6 {[%emt 0:01:24]} cxb6 {[%emt 0:00:55]} 46. Rf4 {[%emt 0:00:09]} Nc6 {[%emt 0:02:33]} 47. Rf6 {[%emt 0:01:12]} Nxb4 {[%emt 0:00:30]} 48. Bxf7 {[%emt 0:00:23]} Re1 {[%emt 0:06:24]} 49. Bf4 {[%emt 0:00:05]} Nd3 {[%emt 0:01:13]} 50. Bd5+ {[%emt 0:00:28]} Ka7 {[%emt 0:00:55]} 51. e6 {[%emt 0:01:21]} Nxf4 {[%emt 0:03:02]} 52. Kxf4 {[%emt 0:00:05]} Ka6 {[%emt 0:00:28]} 53. Rf7 {[%emt 0:00:38]} Rg8 {[%emt 0:00:09]} 54. Kf5 {[%emt 0:00:58]} b5 {[%emt 0:00:27]} 55. f4 {[%emt 0:00:04]} Rd1 {[%emt 0:00:46]} 56. Be4 {[%emt 0:02:18]} Re8 {[%emt 0:00:45]} 57. Bc6 {[%emt 0:00:42]} b4 {[%emt 0:00:33]} 58. Bxe8 {[%emt 0:00:24]} b3 {[%emt 0:00:08]} 59. Ba4 {[%emt 0:00:34]} b2 {[%emt 0:00:29]} 60. Bc2 {[%emt 0:00:17]} Rd2 {[%emt 0:00:33]} 61. Be4 {[%emt 0:00:21]} Rd5+ {[%emt 0:00:25]} 62. Kf6 {[%emt 0:00:18]} Rd4 {[%emt 0:00:05]} 63. Bg6 {[%emt 0:01:04]} Rxf4+ {[%emt 0:00:38]} 64. Kg7 {[%emt 0:00:05]} Rg4 {[%emt 0:00:16]} 65. Rf1 {[%emt 0:00:04]} 1-0

[Event "Torneio Nacional Honour 2017-18"]
[Site "Cascais"]
[Date "2018.08.17"]
[Round "9"]
[White "Santos, Isabel"]
[Black "Horta, Antonio Mauricio Ri"]
[Result "1/2-1/2"]
[ECO "D06"]
[WhiteElo "2005"]
[BlackElo "1950"]
[Annotator "NA"]
[PlyCount "32"]
[EventDate "2018.08.11"]
[EventType "tourn"]
[EventCountry "POR"]
[SourceTitle "playchess.com"]
[Source "ChessBase"]
[SourceQuality "1"]
[TimeControl "5400+30"]

1. d4 {[%emt 0:48:33]} d5 {[%emt 0:02:10]} 2. c4 {[%emt 0:00:20]} Nf6 {[%emt 0:00:10]} 3. cxd5 {[%emt 0:00:09]} Nxd5 {[%emt 0:00:13]} 4. e4 {[%emt 0:00:05]} Nb6 {[%emt 0:02:09]} 5. Nc3 {[%emt 0:00:30]} g6 {[%emt 0:00:37]} 6. Nf3 {[%emt 0:00:09]} Bg7 {[%emt 0:00:07]} 7. Be3 {[%emt 0:02:32]} O-O {[%emt 0:00:26]} 8. Be2 {[%emt 0:00:47]} Bg4 {[%emt 0:05:03]} 9. O-O {[%emt 0:01:03]} Bxf3 {[%emt 0:02:56]} 10. Bxf3 {[%emt 0:00:05]} Nc4 {[%emt 0:00:08]} 11. Qb3 {[%emt 0:02:17]} Nxe3 {[%emt 0:01:58]} 12. fxe3 {[%emt 0:00:03]} Qc8 {[%emt 0:16:55]} 13. Rac1 {[%emt 0:01:55]} Nc6 {[%emt 0:03:23]} 14. e5 {[%emt 0:04:52]} Rb8 {[%emt 0:02:29]} 15. Nd5 {[%emt 0:08:52]} Qd7 {[%emt 0:03:40]} 16. Nf4 {[%emt 0:01:45]} Nxd4 {[%emt 0:01:16]} 1/2-1/2

[Event "Torneio Nacional Honour 2017-18"]
[Site "Cascais"]
[Date "2018.08.17"]
[Round "9"]
[White "Lavrador, Rodolfo M Mascarenh"]
[Black "Godinho Marques, Pedro"]
[Result "1-0"]
[ECO "B28"]
[WhiteElo "1859"]
[BlackElo "1862"]
[Annotator "NA"]
[PlyCount "127"]
[EventDate "2018.08.11"]
[EventType "tourn"]
[EventCountry "POR"]
[SourceTitle "playchess.com"]
[Source "ChessBase"]
[SourceQuality "1"]
[TimeControl "5400+30"]

1. e4 {[%emt 0:00:00]} c5 {[%emt 0:04:26]} 2. Nf3 {[%emt 0:00:12]} a6 {[%emt 0:00:23]} 3. d4 {[%emt 0:01:32]} cxd4 {[%emt 0:00:09]} 4. Nxd4 {[%emt 0:00:11]} Nf6 {[%emt 0:00:09]} 5. Nc3 {[%emt 0:01:08]} e5 {[%emt 0:00:41]} 6. Nf3 {[%emt 0:00:23]} Bb4 {[%emt 0:00:17]} 7. Bd2 {[%emt 0:01:39]} O-O {[%emt 0:05:59]} 8. Bd3 {[%emt 0:00:39]} d5 {[%emt 0:05:09]} 9. Qe2 {[%emt 0:07:10]} ({Much worse is} 9. Nxe5 Re8 $17) (9. Nxd5 $11 Bxd2+ 10. Nxd2 (10. Qxd2 Nxd5 11. exd5 e4 $15)) 9... d4 {[%emt 0:07:53]} 10. Nb1 {[%emt 0:02:08]} Bxd2+ {[%emt 0:02:26]} 11. Nbxd2 {[%emt 0:00:36]} Bg4 {[%emt 0:01:13]} 12. O-O {[%emt 0:00:55]} Nbd7 {[%emt 0:01:37]} 13. h3 {[%emt 0:02:18]} Bh5 {[%emt 0:04:31]} 14. Rfe1 $15 {[%emt 0:02:13]} Qe7 {[%emt 0:07:52]} 15. Nf1 {[%emt 0:04:21]} Rac8 {[%emt 0:02:25]} 16. g4 {[%emt 0:00:51]} Bg6 {[%emt 0:03:06]} 17. Ng3 {[%emt 0:01:54]} Nc5 {[%emt 0:02:07]} 18. Nf5 {[%emt 0:01:16]} Qc7 {[%emt 0:03:50]} 19. Qd2 {[%emt 0:15:53]} Ne6 {[%emt 0:03:10]} 20. N3h4 {[%emt 0:06:25]} Nf4 {[%emt 0:01:00]} 21. Kh2 {[%emt 0:00:14]} Rfe8 {[%emt 0:09:02]} 22. Ng2 {[%emt 0:03:47]} Bxf5 {[%emt 0:02:28]} 23. exf5 {[%emt 0:03:33]} Nxd3 {[%emt 0:04:57]} 24. cxd3 {[%emt 0:00:57]} Qc2 {[%emt 0:13:00]} 25. Re2 {[%emt 0:02:07]} Qxd2 {[%emt 0:01:17]} 26. Rxd2 {[%emt 0:00:12]} Nd5 {[%emt 0:00:11]} 27. Re1 {[%emt 0:05:00]} Kf8 {[%emt 0:02:11]} 28. a3 {[%emt 0:02:04]} f6 {[%emt 0:01:26]} 29. Ree2 {[%emt 0:00:37]} Re7 {[%emt 0:00:59]} 30. Kg3 {[%emt 0:01:02]} b5 {[%emt 0:01:18]} 31. h4 {[%emt 0:00:48]} b4 {[%emt 0:01:36]} 32. axb4 {[%emt 0:01:15]} Nxb4 {[%emt 0:03:04]} 33. f4 {[%emt 0:00:36]} Nd5 {[%emt 0:00:28]} 34. fxe5 {[%emt 0:01:12]} fxe5 {[%emt 0:00:13]} 35. Kf3 {[%emt 0:03:22]} a5 {[%emt 0:00:34]} 36. Rc2 {[%emt 0:03:28]} Rxc2 {[%emt 0:03:58]} 37. Rxc2 {[%emt 0:00:08]} Nb4 {[%emt 0:00:19]} 38. Rc8+ {[%emt 0:00:14]} Kf7 {[%emt 0:00:11]} 39. Ke4 {[%emt 0:00:51]} Na6 {[%emt 0:01:23]} 40. Ne1 {[%emt 0:01:57]} Rb7 {[%emt 0:00:27]} 41. Nf3 {[%emt 0:02:29]} Rxb2 {[%emt 0:01:08]} 42. Nxe5+ {[%emt 0:00:28]} Ke7 {[%emt 0:00:17]} 43. Kxd4 {[%emt 0:03:27]} a4 {[%emt 0:00:29]} 44. Ra8 {[%emt 0:01:16]} Rb6 {[%emt 0:00:57]} 45. Ra7+ {[%emt 0:00:42]} Ke8 {[%emt 0:00:37]} 46. Nc4 {[%emt 0:00:44]} Rc6 {[%emt 0:00:38]} 47. Rxg7 Nc7 48. Rxh7 {[%emt 0:03:25]} Nb5+ {[%emt 0:01:14]} 49. Kd5 {[%emt 0:00:37]} Ra6 {[%emt 0:00:24]} 50. g5 {[%emt 0:05:54]} a3 {[%emt 0:00:08]} 51. Nxa3 {[%emt 0:00:07]} Rxa3 {[%emt 0:00:33]} 52. g6 {[%emt 0:00:47]} Rxd3+ {[%emt 0:01:05]} 53. Kc4 {[%emt 0:00:06]} Rf3 {[%emt 0:00:21]} 54. Kxb5 {[%emt 0:00:35]} Rxf5+ {[%emt 0:00:09]} 55. Kc4 {[%emt 0:00:21]} Rf4+ {[%emt 0:01:12]} 56. Kd5 {[%emt 0:00:17]} Rg4 {[%emt 0:00:45]} 57. h5 {[%emt 0:00:11]} Kf8 {[%emt 0:00:07]} 58. Ke5 {[%emt 0:00:30]} Ra4 {[%emt 0:00:43]} 59. Kf6 {[%emt 0:00:31]} Kg8 {[%emt 0:00:41]} 60. Rb7 {[%emt 0:00:39]} Ra6+ {[%emt 0:00:25]} 61. Kg5 {[%emt 0:00:13]} Ra5+ {[%emt 0:00:32]} 62. Kh6 {[%emt 0:00:23]} Ra8 {[%emt 0:00:14]} 63. Rb5 {[%emt 0:02:50]} Rc8 {[%emt 0:00:21]} 64. Kg5 {[%emt 0:00:13]} 1-0

[Event "Torneio Nacional Honour 2017-18"]
[Site "Cascais"]
[Date "2018.08.17"]
[Round "9"]
[White "Goncalves, Carlos Manuel M"]
[Black "De Moura, Fernando Alves"]
[Result "1-0"]
[ECO "A05"]
[WhiteElo "1645"]
[BlackElo "1814"]
[Annotator "NA"]
[PlyCount "105"]
[EventDate "2018.08.11"]
[EventType "tourn"]
[EventCountry "POR"]
[SourceTitle "playchess.com"]
[Source "ChessBase"]
[SourceQuality "1"]
[TimeControl "5400+30"]

1. Nf3 {[%emt 0:20:39]} Nf6 {[%emt 0:00:00]} 2. g3 {[%emt 0:00:08]} c6 {[%emt 0:00:33]} 3. Bg2 {[%emt 0:00:08]} g6 {[%emt 0:00:20]} 4. O-O {[%emt 0:00:10]} Bg7 {[%emt 0:00:07]} 5. d3 {[%emt 0:00:18]} O-O {[%emt 0:02:03]} 6. e4 {[%emt 0:00:50]} d6 {[%emt 0:00:09] LiveBook: 24 Games} 7. c3 {[%emt 0:00:31]} e5 {[%emt 0:01:33]} 8. a4 {[%emt 0:01:17]} Re8 {[%emt 0:02:51]} 9. h3 {[%emt 0:01:21]} d5 {[%emt 0:08:57]} 10. Qb3 {[%emt 0:03:23]} dxe4 {[%emt 0:09:11]} 11. Ng5 {[%emt 0:00:23]} Qc7 $15 {[%emt 0:03:13]} 12. Nxe4 {[%emt 0:02:15]} Nxe4 {[%emt 0:01:22]} 13. dxe4 {[%emt 0:00:18]} Be6 {[%emt 0:00:59]} 14. Qc2 {[%emt 0:01:58]} Nd7 {[%emt 0:01:50]} 15. Be3 {[%emt 0:01:09]} b6 {[%emt 0:02:39]} 16. Nd2 {[%emt 0:03:17]} c5 {[%emt 0:05:16]} 17. Rfd1 {[%emt 0:07:13]} Rad8 {[%emt 0:03:31]} 18. Nf3 {[%emt 0:01:02]} h6 {[%emt 0:00:30]} 19. Rd2 {[%emt 0:04:22]} Qc8 {[%emt 0:09:58]} 20. Rad1 {[%emt 0:03:42]} Nb8 {[%emt 0:04:40]} 21. Kh2 {[%emt 0:02:51]} Nc6 {[%emt 0:01:08]} 22. Qc1 {[%emt 0:00:36]} Kh7 {[%emt 0:01:46]} 23. Ne1 {[%emt 0:02:28]} Bb3 {[%emt 0:01:21]} 24. Rxd8 {[%emt 0:00:21]} Rxd8 {[%emt 0:00:09]} 25. Rxd8 {[%emt 0:00:13]} Qxd8 {[%emt 0:00:02]} 26. f4 {[%emt 0:00:36]} Bxa4 {[%emt 0:08:17]} 27. f5 {[%emt 0:01:01]} Na5 {[%emt 0:06:08]} 28. Bf1 {[%emt 0:07:32]} Qd1 {[%emt 0:05:13]} 29. Qxd1 {[%emt 0:05:14]} Bxd1 {[%emt 0:00:03]} 30. b4 {[%emt 0:00:22]} cxb4 {[%emt 0:00:58]} 31. cxb4 {[%emt 0:00:02]} Nb3 {[%emt 0:00:36]} 32. Bc4 {[%emt 0:00:33]} f6 {[%emt 0:07:20]} 33. g4 {[%emt 0:00:59]} Bf8 {[%emt 0:00:28]} 34. Nd3 {[%emt 0:02:46]} Nd4 {[%emt 0:03:24]} 35. fxg6+ {[%emt 0:03:20]} Kxg6 {[%emt 0:00:04]} 36. Kg3 {[%emt 0:01:29]} Be2 {[%emt 0:03:11]} 37. b5 {[%emt 0:03:31]} Bd6 {[%emt 0:01:38]} 38. Kf2 {[%emt 0:01:40]} Bd1 {[%emt 0:00:33]} 39. Nb2 {[%emt 0:02:59]} Bb3 {[%emt 0:00:50]} 40. Bxd4 exd4 {[%emt 0:04:19]} 41. Bxb3 {[%emt 0:00:45]} h5 {[%emt 0:00:18]} 42. gxh5+ {[%emt 0:00:21]} Kxh5 {[%emt 0:00:02]} 43. Be6 {[%emt 0:00:20]} Bc7 {[%emt 0:01:02]} 44. Ke2 Kh4 45. Kd3 {[%emt 0:02:12]} Be5 {[%emt 0:00:52]} 46. Nd1 {[%emt 0:01:23]} Kg3 {[%emt 0:00:14]} 47. Bf5 {[%emt 0:00:44]} Kh4 {[%emt 0:00:18]} 48. Nb2 {[%emt 0:00:38]} Kg3 {[%emt 0:00:07]} 49. Nc4 {[%emt 0:00:07]} Kh4 {[%emt 0:00:20]} 50. Nd2 {[%emt 0:01:15]} Kg3 {[%emt 0:00:29]} 51. Bg4 {[%emt 0:00:06]} Kf4 {[%emt 0:00:21]} 52. Nf3 {[%emt 0:00:55]} Kg3 {[%emt 0:00:14]} 53. Nxd4 {[%emt 0:00:17]} 1-0